{"text_format":"1","workbook":"xlsx","n_sheets":1,"sheets":["Inventario de farmacia"],"not_rendered":{"charts":0,"images":0,"macros":1,"external_links":0,"defined_names":0,"comments":0,"pivot_tables":0},"unopened":[],"bounds":{"document_bytes":16777216,"sheet_cells":100000,"rows_first":2000,"rows_last":500,"rows_between":2000,"halvings":0,"cell_chars":16384,"cell_head_chars":4096},"cells_cut":0,"cells_raw":0,"read":"whole","date_system":"1900"}

{"sheet":"Inventario de farmacia","index":0,"n_rows":25,"n_cols":10,"rows_kept":25,"cut":false,"hidden":false,"merged":[[0,1,0,9]]}
[null,"Inventario de Farmacia"]
[]
[null,"SUCURSAL","LABORATORIO","COD. DE VENDEDOR","COD. DE MEDICINA","NOMBRE DE MEDICINA","PRECIO POR CAJA","MONEDA","CANT","TOTAL"]
[null,"MAYOLO","GENFAR","C001",104,"APRONAX",80,null,1,{"$f":"G4*I4","v":80}]
[null,"PALMERAS","GENFAR","C002",202,"BACTRIM",90,null,2,{"$f":"G5*I5","v":180}]
[null,"PALMERAS","GENFAR","C001",403,"CLOTRIMAZOL",60,null,1,60]
[null,"MAYOLO","GENFAR","C002",403,"CLOTRIMAZOL",60,null,1,60]
[null,"BOLIVAR","GENFAR","C003",202,"BACTRIM",90,null,2,180]
[null,"MAYOLO","GENFAR","C002",403,"CLOTRIMAZOL",60,null,3,180]
[null,"BOLIVAR","GENFAR","C005",104,"APRONAX",80,null,1,80]
[null,"BOLIVAR","GENFAR","C002",202,"BACTRIM",90,null,1,90]
[null,"MAYOLO","MARFAM","C007",105,"DULCOLAX",55,null,2,110]
[null,"LA MAR","MARFAM","C003",207,"ERITROMICINA",65,null,2,130]
[null,"MAYOLO","MARFAM","C004",105,"DULCOLAX",55,null,1,55]
[null,"LA MAR","MARFAM","C005",207,"ERITROMICINA",65,null,1,65]
[null,"BOLIVAR","MARFAM","C003",105,"FURAZOLIDONA",45,null,2,90]
[null,"MAYOLO","MARFAM","C002",207,"ERITROMICINA",65,null,3,195]
[null,"MAYOLO","MARFAM","C005",403,"GAMALATE",85,null,4,340]
[null,"BOLIVAR","PORTUGAL","C001",301,"HIOSCINA",35,null,1,35]
[null,"MAYOLO","PORTUGAL","C001",301,"HIOSCINA",35,null,1,35]
[null,"PALMERAS","PORTUGAL","C002",105,"MUCOTRIM",100,null,1,100]
[null,"MAYOLO","PORTUGAL","C003",301,"OMEPRAZOL",40,null,1,40]
[null,"BOLIVAR","PORTUGAL","C001",301,"OMEPRAZOL",40,null,1,40]
[null,"PALMERAS","PORTUGAL","C005",301,"OMEPRAZOL",40,null,2,80]
[null,"PALMERAS","PORTUGAL","C008",105,"MUCOTRIM",100,null,3,300]